fUST/lending_fUST_20250701
["ID","MTS","AMOUNT","RATE_DAILY","PERIOD"]
[368813782,1751369449665,-629.32,0.00020229,2]
[368813783,1751369449674,-822.87,0.00020229,2]
[368813784,1751369449683,-460.0,0.00020229,2]
[368813785,1751369449693,-460.0,0.00020229,2]
[368813786,1751369449703,-460.0,0.00020229,2]
[368813787,1751369449712,-2535.47,0.00020229,2]
[368813788,1751369449723,-460.0,0.00020229,2]
[368813789,1751369449733,-265.02,0.00020229,2]
[368813790,1751369449743,-460.0,0.00020312,2]
[368813791,1751369449753,-1408.32,0.00020312,2]
[368813792,1751369449765,-460.0,0.00020312,2]
[368813793,1751369449775,-676.82,0.00020312,2]
[368813794,1751369449784,-1036.99,0.00020312,2]
[368813795,1751369449794,-460.0,0.00020312,2]
[368813796,1751369449803,-460.0,0.00020312,2]
[368813797,1751369449813,-850.27,0.00020312,2]
[368813798,1751369449822,-460.0,0.00020312,2]
[368813799,1751369449831,-715.03,0.00020312,2]
[368813800,1751369449840,-460.0,0.00020312,2]
[368813801,1751369449849,-460.0,0.00020313,2]
[368813802,1751369449858,-1737.85275972,0.00020348,3]
[368813803,1751369449868,-151.0,0.000204,3]
[368813804,1751369449878,-350.0,0.00020468,2]
[368813805,1751369449887,-544.57,0.00020502,2]
[368813806,1751369449897,-1258.57,0.00020502,2]
[368813807,1751369449907,-460.0,0.00020502,2]
[368813808,1751369449917,-1031.68,0.00020502,2]
[368813809,1751369449926,-1092.39,0.00020502,2]
[368813810,1751369449934,-863.2,0.00020502,2]
[368813811,1751369449943,-1254.1,0.00020502,2]
[368813812,1751369449953,-629.32,0.00020503,2]
[368813813,1751369449962,-822.87,0.00020503,2]
[368813814,1751369449971,-460.0,0.00020503,2]
[368813815,1751369449979,-460.0,0.00020503,2]
[368813816,1751369449989,-460.0,0.00020503,2]
[368813817,1751369449998,-2535.47,0.00020503,2]
[368813818,1751369450008,-460.0,0.00020503,2]
[368813819,1751369450018,-2338.53940238,0.00020551,2]
[368813820,1751369450028,-253.39,0.00020586,2]
[368813821,1751369450037,-1408.32,0.00020586,2]
[368813822,1751369450046,-460.0,0.00020586,2]
[368813823,1751369450056,-676.82,0.00020586,2]
[368813824,1751369450065,-1036.99,0.00020586,2]
[368813825,1751369450075,-239.21,0.00020586,2]
[368813826,1751369450085,-460.0,0.00020586,2]
[368813827,1751369450095,-850.27,0.00020586,2]
[368813828,1751369450106,-460.0,0.00020586,2]
[368813829,1751369450117,-715.03,0.00020586,2]
[368813830,1751369450126,-460.0,0.00020586,2]
[368813831,1751369450136,-460.0,0.00020587,2]
[368813832,1751369450145,-1737.85275972,0.0002059,3]
[368813833,1751369450155,-25000.0,0.00020604,2]
[368813834,1751369450165,-5000.0,0.00020604,2]
[368813835,1751369450175,-3908.879672,0.00020604,2]
[368813836,1751369450185,-500.0,0.00020604,2]
[368813837,1751369450195,-151.0,0.00020604,2]
[368813838,1751369450206,-690.642,0.00020604,2]
[368813839,1751369450216,-500.0,0.00020604,2]
[368813840,1751369450227,-298.60925501,0.00020604,2]
[368813841,1751369450236,-500.0,0.00020604,2]
[368813842,1751369450246,-500.0,0.00020604,2]
[368813843,1751369450257,-207.4,0.00020604,2]
[368813844,1751369450266,-500.0,0.00020604,2]
[368813845,1751369450276,-500.0,0.00020604,2]
[368813846,1751369450287,-500.0,0.00020604,2]
[368813847,1751369450304,-500.0,0.00020604,2]
[368813848,1751369450314,-500.0,0.00020604,2]
[368813849,1751369450323,-500.0,0.00020604,2]
[368813850,1751369450333,-500.0,0.00020604,2]
[368813851,1751369450342,-500.0,0.00020604,2]
[368813852,1751369450352,-500.0,0.00020604,2]
[368813853,1751369450362,-500.0,0.00020604,2]
[368813854,1751369450372,-500.0,0.00020604,2]
[368813855,1751369450382,-500.0,0.00020604,2]
[368813856,1751369450394,-500.0,0.00020604,2]
[368813857,1751369450403,-500.0,0.00020604,2]
[368813858,1751369450412,-500.0,0.00020604,2]
[368813859,1751369450421,-500.0,0.00020604,2]
[368813860,1751369450430,-500.0,0.00020604,2]
[368813861,1751369450440,-500.0,0.00020604,2]
[368813862,1751369450449,-500.0,0.00020604,2]
[368813863,1751369450459,-500.0,0.00020604,2]
[368813864,1751369450468,-500.0,0.00020604,2]
[368813865,1751369450478,-500.0,0.00020604,2]
[368813866,1751369450488,-500.0,0.00020604,2]
[368813867,1751369450498,-561.88688042,0.00020604,2]
[368813868,1751369450507,-1000.0,0.00020604,2]
[368813869,1751369450516,-971.9089426,0.00020604,2]
[368813870,1751369450526,-1000.0,0.00020604,2]
[368813871,1751369450536,-387.707,0.00020611,2]
[368813872,1751369450546,-716.195754,0.00020659,2]
[368813873,1751369450556,-742.6949969,0.00020714,2]
[368813874,1751369450565,-564.7876159,0.00020726,2]
[368813875,1751369450575,-2454.89427906,0.00020747,2]
[368813876,1751369450585,-770.17471178,0.00020769,2]
[368813877,1751369450594,-544.57,0.00020776,2]
[368813878,1751369450605,-1258.57,0.00020776,2]
[368813879,1751369450615,-460.0,0.00020776,2]
[368813880,1751369450626,-1031.68,0.00020776,2]
[368813881,1751369450636,-1092.39,0.00020776,2]
[368813882,1751369450647,-863.2,0.00020776,2]
[368813883,1751369450656,-1254.1,0.00020776,2]
[368813884,1751369450666,-629.32,0.00020777,2]
[368813885,1751369450676,-822.87,0.00020777,2]
[368813886,1751369450685,-460.0,0.00020777,2]
[368813887,1751369450695,-460.0,0.00020777,2]
[368813888,1751369450705,-460.0,0.00020777,2]
[368813889,1751369450714,-2535.47,0.00020777,2]
[368813890,1751369450724,-460.0,0.00020777,2]
[368813891,1751369450734,-151.0,0.000208,3]
[368813892,1751369450743,-151.0,0.000208,4]
[368813893,1751369450752,-798.67117612,0.00020824,2]
[368813894,1751369450761,-1737.85275972,0.00020831,4]
[368813895,1751369450771,-587.0,0.0002084,2]
[368813896,1751369450781,-1408.32,0.0002086,2]
[368813897,1751369450790,-460.0,0.0002086,2]
[368813898,1751369450799,-676.82,0.0002086,2]
[368813899,1751369450809,-1036.99,0.0002086,2]
[368813900,1751369450818,-460.0,0.0002086,2]
[368813901,1751369450828,-850.27,0.0002086,2]
[368813902,1751369450838,-460.0,0.0002086,2]
[368813903,1751369450848,-715.03,0.0002086,2]
[368813904,1751369450858,-460.0,0.0002086,2]
[368813905,1751369450868,-460.0,0.00020861,2]
[368813906,1751369450877,-828.22200964,0.00020879,2]
[368813907,1751369450888,-858.86622399,0.00020934,2]
[368813908,1751369450898,-208.64746865,0.00020989,2]
[368813909,1751369450907,-1000.0,0.00021,21]
[368813910,1751369450917,-82286.30619777,0.00021,2]
[368813911,1751369450926,-150.999999,0.00021,2]
[368813912,1751369450936,-450.0,0.00021016,2]
[368813913,1751369450946,-2338.53940238,0.00021043,2]
[368813914,1751369450956,-544.57,0.0002105,2]
[368813915,1751369450966,-1258.57,0.0002105,2]
[368813916,1751369450976,-460.0,0.0002105,2]
[368813917,1751369450985,-1031.68,0.0002105,2]
[368813918,1751369450995,-1092.39,0.0002105,2]
[368813919,1751369451004,-863.2,0.0002105,2]
[368813920,1751369451014,-1254.1,0.0002105,2]
[368813921,1751369451024,-629.32,0.00021051,2]
[368813922,1751369451033,-822.87,0.00021051,2]
[368813923,1751369451042,-460.0,0.00021051,2]
[368813924,1751369451052,-460.0,0.00021051,2]
[368813925,1751369451061,-168.52498697,0.00021051,2]
[368813926,1751369451071,-2535.47,0.00021051,2]
[368813927,1751369451080,-460.0,0.00021051,2]
[368813928,1751369451090,-168.74373069,0.00021053,2]
[368813929,1751369451100,-1737.85275972,0.00021072,4]
[368813930,1751369451109,-1408.32,0.00021134,2]
[368813931,1751369451119,-460.0,0.00021134,2]
[368813932,1751369451128,-676.82,0.00021134,2]
[368813933,1751369451138,-1036.99,0.00021134,2]
[368813934,1751369451148,-460.0,0.00021134,2]
[368813935,1751369451158,-850.27,0.00021134,2]
[368813936,1751369451168,-460.0,0.00021134,2]
[368813937,1751369451177,-715.03,0.00021134,2]
[368813938,1751369451186,-460.0,0.00021134,2]
[368813939,1751369451196,-460.0,0.00021135,2]
[368813940,1751369451205,-151.0,0.00021152,2]
[368813941,1751369451215,-151.0,0.00021152,2]
[368813942,1751369451224,-151.0,0.00021152,2]
[368813943,1751369451234,-151.0,0.00021152,2]
[368813944,1751369451243,-151.0,0.00021152,2]
[368813945,1751369451253,-25000.0,0.00021152,2]
[368813946,1751369451263,-2338.53940238,0.00021296,2]
[368813947,1751369451272,-1737.85275972,0.00021314,5]
[368813948,1751369451282,-544.57,0.00021324,2]
[368813949,1751369451294,-1258.57,0.00021324,2]
[368813950,1751369451303,-460.0,0.00021324,2]
[368813951,1751369451313,-1031.68,0.00021324,2]
[368813952,1751369451323,-1092.39,0.00021324,2]
[368813953,1751369451332,-863.2,0.00021324,2]
[368813954,1751369451343,-1254.1,0.00021324,2]
[368813955,1751369451353,-629.32,0.00021325,2]
[368813956,1751369451363,-822.87,0.00021325,2]
[368813957,1751369451374,-460.0,0.00021325,2]
[368813958,1751369451383,-2535.47,0.00021325,2]
[368813959,1751369451393,-460.0,0.00021325,2]
[368813960,1751369451403,-1408.32,0.00021408,2]
[368813961,1751369451413,-460.0,0.00021408,2]
[368813962,1751369451422,-676.82,0.00021408,2]
[368813963,1751369451432,-1036.99,0.00021408,2]
[368813964,1751369451442,-460.0,0.00021408,2]
[368813965,1751369451451,-850.27,0.00021408,2]
[368813966,1751369451461,-301.6,0.00021408,2]
[368813967,1751369451471,-715.03,0.00021408,2]
[368813968,1751369451480,-460.0,0.00021408,2]
[368813969,1751369451490,-577.57,0.00021409,2]
[368813970,1751369451499,-1737.85275972,0.00021555,5]
[368813971,1751369451509,-550.0,0.00021564,2]
[368813972,1751369451518,-544.57,0.00021598,2]
[368813973,1751369451528,-1258.57,0.00021598,2]
[368813974,1751369451538,-460.0,0.00021598,2]
[368813975,1751369451548,-1031.68,0.00021598,2]
[368813976,1751369451557,-1092.39,0.00021598,2]
[368813977,1751369451567,-863.2,0.00021598,2]
[368813978,1751369451576,-1254.1,0.00021598,2]
[368813979,1751369451588,-629.32,0.00021599,2]
[368813980,1751369451598,-822.87,0.00021599,2]
[368813981,1751369451608,-460.0,0.00021599,2]
[368813982,1751369451618,-2535.47,0.00021599,2]
[368813983,1751369451627,-460.0,0.00021599,2]
[368813984,1751369451638,-2338.53940238,0.00021636,2]
[368813985,1751369451648,-1408.32,0.00021682,2]
[368813986,1751369451658,-460.0,0.00021682,2]
[368813987,1751369451669,-676.82,0.00021682,2]
[368813988,1751369451679,-1036.99,0.00021682,2]
[368813989,1751369451689,-460.0,0.00021682,2]
[368813990,1751369451700,-850.27,0.00021682,2]
[368813991,1751369451710,-715.03,0.00021682,2]
[368813992,1751369451720,-460.0,0.00021682,2]
[368813993,1751369451730,-2338.53940241,0.00021698,2]
[368813994,1751369451739,-966.0,0.00021746,2]
[368813995,1751369451749,-34455.15551004,0.00021774,2]
[368813996,1751369451760,-2454.89427906,0.00021774,2]
[368813997,1751369451771,-1737.85275972,0.00021797,6]
[368813998,1751369451780,-564.7876159,0.0002181,2]
[368813999,1751369451790,-544.57,0.00021872,2]
[368814000,1751369451899,-1258.57,0.00021872,2]
[368814001,1751369451908,-460.0,0.00021872,2]
[368814002,1751369451919,-1031.68,0.00021872,2]
[368814003,1751369451928,-1092.39,0.00021872,2]
[368814004,1751369451937,-863.2,0.00021872,2]
[368814005,1751369451946,-1254.1,0.00021872,2]
[368814006,1751369451956,-629.32,0.00021873,2]
[368814007,1751369451965,-822.87,0.00021873,2]
[368814008,1751369451975,-460.0,0.00021873,2]
[368814009,1751369451984,-2535.47,0.00021873,2]
[368814010,1751369451994,-460.0,0.00021873,2]
[368814011,1751369452003,-1408.32,0.00021956,2]
[368814012,1751369452013,-588.95,0.00021956,2]
[368814013,1751369452023,-676.82,0.00021956,2]
[368814014,1751369452032,-1036.99,0.00021956,2]
[368814015,1751369452042,-460.0,0.00021956,2]
[368814016,1751369452051,-850.27,0.00021956,2]
[368814017,1751369452061,-715.03,0.00021956,2]
[368814018,1751369452072,-460.0,0.00021956,2]
[368814019,1751369452082,-215.0738,0.00021973,2]
[368814020,1751369452092,-500.0,0.00022,2]
[368814021,1751369452101,-1000.0,0.00022,22]
[368814022,1751369452110,-51112.0,0.00022,2]
[368814023,1751369452120,-151.0,0.00022,7]
[368814024,1751369452129,-151.0,0.00022,7]
[368814025,1751369452139,-151.0,0.00022,7]
[368814026,1751369452149,-151.0,0.00022,7]
[368814027,1751369452157,-151.0,0.00022,7]
[368814028,1751369452167,-151.0,0.00022,7]
[368814029,1751369452178,-176.470104,0.00022,7]
[368814030,1751369452190,-151.0,0.00022,7]
[368814031,1751369452199,-151.0,0.00022,7]
[368814032,1751369452209,-151.0,0.00022,7]
[368814033,1751369452219,-150.0,0.00022,2]
[368814034,1751369452229,-151.0,0.00022,7]
[368814035,1751369452239,-178.0,0.00022,2]
[368814036,1751369452248,-167.0,0.00022,2]
[368814037,1751369452257,-151.0,0.00022,7]
[368814038,1751369452266,-151.0,0.00022,7]
[368814039,1751369452277,-151.0,0.00022,7]
[368814040,1751369452287,-151.0,0.00022,7]
[368814041,1751369452302,-151.0,0.00022,7]
[368814042,1751369452311,-151.0,0.00022,7]
[368814043,1751369452320,-200.0,0.00022,2]
[368814044,1751369452331,-1737.85275972,0.00022038,6]
[368814045,1751369452342,-444.26419886,0.00022112,2]
[368814046,1751369452352,-544.57,0.00022146,2]
[368814047,1751369452362,-1258.57,0.00022146,2]
[368814048,1751369452373,-460.0,0.00022146,2]
[368814049,1751369452385,-1031.68,0.00022146,2]
[368814050,1751369452396,-1092.39,0.00022146,2]
[368814051,1751369452406,-863.2,0.00022146,2]
[368814052,1751369452417,-1254.1,0.00022146,2]
[368814053,1751369452426,-629.32,0.00022147,2]
[368814054,1751369452437,-822.87,0.00022147,2]
[368814055,1751369452449,-192.14,0.00022147,2]
[368814056,1751369452459,-2535.47,0.00022147,2]
[368814057,1751369452468,-460.0,0.00022147,2]
[368814058,1751369452477,-200.0,0.00022192,7]
[368814059,1751369452487,-151.0,0.000222,9]
[368814060,1751369452498,-465.02039592,0.00022216,2]
[368814061,1751369452509,-646.0,0.00022216,2]
[368814062,1751369452519,-406.0,0.00022216,2]
[368814063,1751369452529,-1408.32,0.0002223,2]
[368814064,1751369452539,-676.82,0.0002223,2]
[368814065,1751369452550,-1036.99,0.0002223,2]
[368814066,1751369452560,-460.0,0.0002223,2]
[368814067,1751369452570,-850.27,0.0002223,2]
[368814068,1751369452580,-715.03,0.0002223,2]
[368814069,1751369452590,-162.6,0.0002223,2]
[368814070,1751369452601,-473.29162236,0.00022279,6]
[368814071,1751369452748,-1264.56113736,0.00022279,6]
[368814072,1751369452759,-179.69451932,0.0002228,2]
[368814073,1751369452768,-779.56,0.00022395,2]
[368814074,1751369452778,-900.0,0.00022397,2]
[368814075,1751369452788,-544.57,0.0002242,2]
[368814076,1751369452798,-1258.57,0.0002242,2]
[368814077,1751369452808,-460.0,0.0002242,2]
[368814078,1751369452818,-1031.68,0.0002242,2]
[368814079,1751369452828,-1092.39,0.0002242,2]
[368814080,1751369452839,-863.2,0.0002242,2]
[368814081,1751369452848,-1254.1,0.0002242,2]
[368814082,1751369452857,-629.32,0.00022421,2]
[368814083,1751369452867,-822.87,0.00022421,2]
[368814084,1751369452876,-2535.47,0.00022421,2]
[368814085,1751369452886,-460.0,0.00022421,2]
[368814086,1751369452895,-779.56,0.00022495,3]
[368814087,1751369452905,-151.0,0.00022504,7]
[368814088,1751369452915,-1408.32,0.00022504,2]
[368814089,1751369452924,-676.82,0.00022504,2]
[368814090,1751369452934,-1036.99,0.00022504,2]
[368814091,1751369452944,-421.87955597,0.00022504,2]
[368814092,1751369452953,-850.27,0.00022504,2]
[368814093,1751369452963,-715.03,0.00022504,2]
[368814094,1751369452972,-1737.85275972,0.00022521,7]
[368814095,1751369452982,-2200.0,0.00022573,2]
[368814096,1751369452992,-779.56,0.00022595,7]
[368814097,1751369453001,-60236.98878623,0.000226,2]
[368814098,1751369453010,-151.0,0.000226,7]
[368814099,1751369453019,-151.0,0.000226,7]
[368814100,1751369453029,-151.0,0.000226,7]
[368814101,1751369453038,-151.0,0.000226,7]
[368814102,1751369453048,-166.422905,0.000226,7]
[368814103,1751369453058,-151.910714,0.000226,7]
[368814104,1751369453067,-151.0,0.000226,7]
[368814105,1751369453076,-198.300075,0.000226,7]
[368814106,1751369453086,-151.0,0.000226,7]
[368814107,1751369453095,-296.367576,0.000226,7]
[368814108,1751369453105,-78385.64642647,0.000226,5]
[368814109,1751369453114,-151.0,0.000226,7]
[368814110,1751369453123,-151.0,0.000226,7]
[368814111,1751369453135,-151.0,0.000226,7]
[368814112,1751369453145,-151.0,0.000226,7]
[368814113,1751369453154,-239.271153,0.00022603,2]
[368814114,1751369453164,-236.0,0.00022631,2]
[368814115,1751369453173,-236.0,0.00022677,2]
[368814116,1751369453182,-236.0,0.00022678,2]
[368814117,1751369453192,-236.0,0.00022692,2]
[368814118,1751369453201,-544.57,0.00022694,2]
[368814119,1751369453210,-1258.57,0.00022694,2]
[368814120,1751369453219,-183.33566674,0.00022694,2]
[368814121,1751369453229,-1031.68,0.00022694,2]
[368814122,1751369453239,-1092.39,0.00022694,2]
[368814123,1751369453248,-863.2,0.00022694,2]
[368814124,1751369453257,-1254.1,0.00022694,2]
[368814125,1751369453267,-779.56,0.00022695,5]
[368814126,1751369453276,-629.32,0.00022695,2]
[368814127,1751369453286,-822.87,0.00022695,2]
[368814128,1751369453299,-2535.47,0.00022695,2]
[368814129,1751369453308,-460.0,0.00022695,2]
[368814130,1751369453318,-1138.78,0.000227,7]
[368814131,1751369453327,-6122.31,0.000227,7]
[368814132,1751369453338,-847.53272281,0.000227,7]
[368814133,1751369453349,-213.87551669,0.000227,7]
[368814134,1751369453360,-12571.40790328,0.000227,7]
[368814135,1751369453371,-823.0,0.00022751,2]
[368814136,1751369453380,-1737.85275972,0.00022762,7]
[368814137,1751369453389,-500.0,0.00022767,2]
[368814138,1751369453399,-1408.32,0.00022778,2]
[368814139,1751369453408,-676.82,0.00022778,2]
[368814140,1751369453417,-1036.99,0.00022778,2]
[368814141,1751369453427,-850.27,0.00022778,2]
[368814142,1751369453436,-715.03,0.00022778,2]
[368814143,1751369453446,-779.56,0.00022795,5]
[368814144,1751369453456,-779.56,0.00022895,5]
[368814145,1751369453466,-564.7876159,0.00022895,2]
[368814146,1751369453475,-3582.32198431,0.000229,2]
[368814147,1751369454212,-33842.86122565,0.000229,2]
[368814148,1751369455289,-2130.1,0.000229,2]
[368814149,1751369455316,-254.58763173,0.00020056,2]
[368814150,1751369455328,-245.74842497,0.00020056,2]
[368814151,1751369455339,-151.0,0.00021152,2]
[368814152,1751369455348,-432.2872531,0.000229,2]
[368814153,1751369455376,444.25031917,0.00017298,2]
[368814154,1751369455706,-0.00138814,0.00017762,2]
[368814155,1751369455811,460.0,0.00017298,2]
[368814156,1751369456007,-46.53634327,0.0001749,2]
[368814157,1751369456019,-257.63171074,0.0001749,2]
[368814158,1751369456030,-155.83194599,0.0001749,2]
[368814159,1751369456039,-460.0,0.00017571,2]
[368814160,1751369456049,-460.0,0.00017572,2]
[368814161,1751369456059,-366.40861186,0.00017762,2]
[368814162,1751369456068,-151.0,0.000226,7]
[368814163,1751369456078,-11124.42953694,0.000229,2]
[368814164,1751369456087,-151.0,0.000229,7]
[368814165,1751369456096,-151.0,0.000229,7]
[368814166,1751369456105,-151.0,0.000229,7]
[368814167,1751369456114,-151.0,0.000229,7]
[368814168,1751369456124,-151.0,0.000229,7]
[368814169,1751369456133,-500.0,0.00022918,2]
[368814170,1751369456142,-500.0,0.00022946,2]
[368814171,1751369456152,-544.57,0.00022968,2]
[368814172,1751369456161,-1258.57,0.00022968,2]
[368814173,1751369456170,-1031.68,0.00022968,2]
[368814174,1751369456180,-1092.39,0.00022968,2]
[368814175,1751369456189,-863.2,0.00022968,2]
[368814176,1751369456199,-1254.1,0.00022968,2]
[368814177,1751369456208,-629.32,0.00022969,2]
[368814178,1751369456217,-822.87,0.00022969,2]
[368814179,1751369456227,-2535.47,0.00022969,2]
[368814180,1751369456236,-460.0,0.00022969,2]
[368814181,1751369456246,-779.56,0.00022995,2]
[368814182,1751369456255,-1000.0,0.00023,23]
[368814183,1751369456264,-500.0,0.00023002,2]
[368814184,1751369456273,-1737.85275972,0.00023003,8]
[368814185,1751369456371,-150.0,0.00023014,7]
[368814186,1751369456381,-200.0,0.00023014,7]
[368814187,1751369456391,-500.0,0.0002304,2]
[368814188,1751369456402,-1408.32,0.00023052,2]
[368814189,1751369456411,-676.82,0.00023052,2]
[368814190,1751369456422,-1036.99,0.00023052,2]
[368814191,1751369456433,-850.27,0.00023052,2]
[368814192,1751369456443,-715.03,0.00023052,2]
[368814193,1751369456453,-779.56,0.00023095,5]
[368814194,1751369456464,-45311.3,0.000231,7]
[368814195,1751369456474,-847.53272281,0.000231,7]
[368814196,1751369456483,-779.56,0.00023195,7]
[368814197,1751369456492,-500.0,0.00023236,2]
[368814198,1751369456502,-544.57,0.00023242,2]
[368814199,1751369456514,-1258.57,0.00023242,2]
[368814200,1751369456526,-1031.68,0.00023242,2]
[368814201,1751369456537,-1092.39,0.00023242,2]
[368814202,1751369456549,-863.2,0.00023242,2]
[368814203,1751369456559,-1254.1,0.00023242,2]
[368814204,1751369456570,-629.32,0.00023243,2]
[368814205,1751369456580,-822.87,0.00023243,2]
[368814206,1751369456590,-2535.47,0.00023243,2]
[368814207,1751369456602,-460.0,0.00023243,2]
[368814208,1751369456613,-1737.85275972,0.00023245,8]
[368814209,1751369456623,-779.56,0.00023295,7]
[368814210,1751369456636,-1408.32,0.00023326,2]
[368814211,1751369456645,-676.82,0.00023326,2]
[368814212,1751369456656,-1036.99,0.00023326,2]
[368814213,1751369456666,-850.27,0.00023326,2]
[368814214,1751369456676,-715.03,0.00023326,2]
[368814215,1751369456685,-151.0,0.00023327,7]
[368814216,1751369456695,-223.0315306,0.00023342,2]
[368814217,1751369456706,-779.56,0.00023395,3]
[368814218,1751369456716,-3636.40082021,0.00023418,2]
[368814219,1751369456726,-179.7709011,0.00023479,2]
[368814220,1751369456735,-159.3450821,0.00023479,2]
[368814221,1751369456746,-159.3450821,0.00023479,2]
[368814222,1751369456755,-159.3450821,0.00023479,2]
[368814223,1751369456766,-159.0653671,0.00023479,2]
[368814224,1751369456775,-1737.85275972,0.00023486,9]
[368814225,1751369456786,-779.56,0.00023495,4]
[368814226,1751369456797,-544.57,0.00023516,2]
[368814227,1751369456809,-1258.57,0.00023516,2]
[368814228,1751369456819,-1031.68,0.00023516,2]
[368814229,1751369456828,-1092.39,0.00023516,2]
[368814230,1751369456838,-863.2,0.00023516,2]
[368814231,1751369456847,-1254.1,0.00023516,2]
[368814232,1751369456857,-629.32,0.00023517,2]
[368814233,1751369456867,-822.87,0.00023517,2]
[368814234,1751369456877,-2535.47,0.00023517,2]
[368814235,1751369456887,-460.0,0.00023517,2]
[368814236,1751369456896,-500.0,0.00023574,2]
[368814237,1751369456906,-779.56,0.00023595,4]
[368814238,1751369456915,-6122.31,0.000236,7]
[368814239,1751369456925,-151.0,0.000236,9]
[368814240,1751369456934,-1408.45578732,0.000236,2]
[368814241,1751369456944,-676.9,0.000236,2]
[368814242,1751369456954,-1037.02,0.000236,2]
[368814243,1751369456963,-850.4,0.000236,2]
[368814244,1751369456973,-715.19881239,0.000236,2]
[368814245,1751369456983,-3636.40082018,0.000236,2]
[368814246,1751369456993,-500.0,0.00023671,2]
[368814247,1751369457002,-779.56,0.00023695,3]
[368814248,1751369457011,-500.0,0.00023695,2]
[368814249,1751369457021,-500.0,0.00023711,2]
[368814250,1751369457031,-1737.85275972,0.00023728,9]
[368814251,1751369457042,-500.0,0.00023781,2]
[368814252,1751369457051,-3636.40082018,0.00023783,2]
[368814253,1751369457061,-151.0,0.00023783,7]
[368814254,1751369457070,-151.0,0.00023783,7]
[368814255,1751369457080,-544.8,0.0002379,2]
[368814256,1751369457089,-1258.80640469,0.0002379,2]
[368814257,1751369457099,-1031.9,0.0002379,2]
[368814258,1751369457109,-1092.59322104,0.0002379,2]
[368814259,1751369457119,-863.25,0.0002379,2]
[368814260,1751369457129,-1254.184905,0.0002379,2]
[368814261,1751369457138,-151.0,0.00023791,7]
[368814262,1751369457147,-151.0,0.00023791,7]
[368814263,1751369457156,-151.0,0.00023791,7]
[368814264,1751369457165,-151.0,0.00023791,7]
[368814265,1751369457175,-151.0,0.00023791,7]
[368814266,1751369457185,-629.36931196,0.00023791,2]
[368814267,1751369457194,-822.89580695,0.00023791,2]
[368814268,1751369457203,-151.0,0.00023791,7]
[368814269,1751369457213,-2535.67375468,0.00023791,2]
[368814270,1751369457224,-181.06,0.00023791,2]
[368814271,1751369457234,-151.0,0.00023792,7]
[368814272,1751369457244,-151.0,0.00023792,7]
[368814273,1751369457255,-151.0,0.00023792,7]
[368814274,1751369457264,-779.56,0.00023795,4]
[368814275,1751369457273,-51112.0,0.000238,2]
[368814276,1751369457282,-151.0,0.000238,7]
[368814277,1751369457291,-151.0,0.000238,7]
[368814278,1751369457301,-151.0,0.000238,7]
[368814279,1751369457315,-151.0,0.000238,7]
[368814280,1751369457324,-151.0,0.000238,7]
[368814281,1751369457334,-151.0,0.000238,7]